Cogmind - Beta 13 @@@ ROGUE MODE // 2024.04.12 @ 13:55:08 Player: szymekc Result: Destroyed by EL-RFC(R) with Subdweller Machine Gun Performance ------------- Evolutions (0) 0 Regions Visited (2) 400 Robots Destroyed (16) 80 Value Destroyed (389) 389 Prototype IDs (2) 40 Alien Tech Used (0) 0 Bonus (0) 0 TOTAL SCORE: 909 Bonus ------- None Cogmind --------- Core Integrity 0/250 Matter 270/300 Energy 200/200 System Corruption 0% Temperature Cool (0) Movement Rolling (145) Ox3 Location -10/Subcaves Parts ------- > --- POWER (1) -------- Subdweller Power Source > --- PROPULSION (2) --- Compact Wheel > --- UTILITY (2) ------ Improved Heat Sink High-capacity Storage Unit > --- WEAPON (2) ------- Subdweller Beam Cannon Grenade Launcher > --- INVENTORY (20) --- Ion Engine Improved Ion Engine Large Storage Unit Large Battery (200) High-capacity Matter Pod (200) High-capacity Matter Pod (91) Signal Interpreter Seismic Detector Core Shielding Beam Cannon Beam Cannon Light Cannon Light Cannon Flamer Heavy Hammer Scrap Shield Fragment (50) Scrap Shield Fragment (49) Scrap Shield Fragment (47) Scrap Shield Fragment (45) Scrap Shield Fragment (38) Peak State ------------ > --- POWER ------------ Improved Ion Engine > --- PROPULSION ------- Light Treads Light Treads > --- UTILITY ---------- Improved Heat Sink High-capacity Storage Unit > --- WEAPON ----------- Beam Cannon Beam Cannon > --- INVENTORY -------- Ion Engine Improved Ion Engine Light Treads Wheel Compact Wheel Large Storage Unit Large Battery High-capacity Matter Pod High-capacity Matter Pod Signal Interpreter Seismic Detector Core Shielding Beam Cannon Beam Cannon Light Cannon Light Cannon Grenade Launcher Heavy Hammer [Rating: 12] Favorites ----------- Power Improved Ion Engine Engine Improved Ion Engine Propulsion Light Treads Treads Light Treads Leg Aluminum Leg Wheel Compact Wheel Utility High-capacity Storage Unit Device Improved Heat Sink Storage High-capacity Storage Unit Weapon Beam Cannon Energy Gun Small Laser Energy Cannon Beam Cannon Ballistic Cannon Light Cannon Launcher Grenade Launcher Build | -11 -10 -10 ------- Run | Yrd Mat Sub Slots Evolved . | . . . Power . | . . . Propulsion . | . . . Utility . | . . . Weapon . | . . . Parts Attached 22 | 2 11 9 Power 3 | . 1 2 Engine 3 | . 1 2 Core . | . . . Reactor . | . . . Propulsion 5 | 2 . 3 Treads 3 | 2 . 1 Leg . | . . . Wheel 2 | . . 2 Hover . | . . . Flight . | . . . Utility 4 | . 4 . Device 3 | . 3 . Storage 1 | . 1 . Processor . | . . . Hackware . | . . . Protection . | . . . Artifact . | . . . Weapon 10 | . 6 4 Energy Gun . | . . . Energy Cannon 6 | . 4 2 Ballistic Gun . | . . . Ballistic Cannon 2 | . 1 1 Launcher 2 | . 1 1 Special Weapon . | . . . Impact Weapon . | . . . Slashing Weapon . | . . . Piercing Weapon . | . . . Special Melee Weapon . | . . . Unidentified Prototypes . | . . . Parts Lost 8 | . 1 7 Power 1 | . . 1 Propulsion 4 | . . 4 Utility 1 | . 1 . Weapon 2 | . . 2 Highest Loss Streak 7 | . 1 7 To Critical Strikes . | . . . Average Slot Usage (%) 97 | . 97 92 Engine 14 | . 14 14 Treads 25 | . 28 11 Wheel 1 | . . 9 Device 12 | . 12 14 Storage 14 | . 14 14 Energy Gun 1 | . 2 . Energy Cannon 25 | . 25 25 Naked Turns . | . . . Heaviest Build 57 | 13 54 57 Greatest Support 40 | 40 40 40 Greatest Overweight (x) 3 | . 1 3 Average Overweight (x) . | . . 2 Largest Inventory Capacity 20 | 8 20 20 Average Capacity 16 | 8 16 20 Most Carried 20 | 6 18 20 Average Carried 12 | 6 12 16 Final Capacity 20 | 8 20 20 Final Carried 20 | 6 18 20 Class Distribution -------------------- 100% | Mutant Dominant Class ---------------- Mutant | -10/Materials Mutant | -10/Subcaves Resources | -11 -10 -10 ----------- Run | Yrd Mat Sub Matter Collected 716 | 220 405 91 Remotely . | . . . Salvage Created 453 | . 428 25 Parts 31 | . 28 3 Haulers Intercepted 1 | . 1 . Recyclers Shooed . | . . . Parts Field Recycled . | . . . Retrieved Matter . | . . . Parts Self-Destructed 9 | . . 9 Prevented . | . . . Kills | -11 -10 -10 ------- Run | Yrd Mat Sub Combat Hostiles Destroyed 14 | . 13 1 Guns 3 | . 3 . Cannons 8 | . 7 1 AOE 3 | . 3 . Classes Destroyed 5 | . 4 1 Hauler 1 | . 1 . Watcher 1 | . 1 . Swarmer 6 | . 6 . Grunt 7 | . 7 . Subdweller 1 | . . 1 Best Kill Streak 3 | . 3 1 Combat Bots Only 3 | . 3 1 Max Kills in Single Turn 2 | . 2 1 Gunslinging . | . . . Exploded 2 | . 2 . Melee . | . . . Uniques/NPCs Destroyed . | . . . Combat | -11 -10 -10 -------- Run | Yrd Mat Sub Hostile Shots Fired 118 | . 73 45 Missed 24 | . 15 9 Damage Taken 1236 | . 508 728 Core 267 | . 68 199 Absorbed by Shields . | . . . Core Remaining (%) 100 | 100 . . Volleys Fired 72 | . 41 31 Largest 2 | . 2 2 Hottest 120 | . 120 120 Shots Fired 139 | . 79 60 Gun 22 | . 22 . Cannon 112 | . 54 58 Launcher 5 | . 3 2 Special . | . . . Kinetic 7 | . 2 5 Thermal 127 | . 74 53 Explosive 5 | . 3 2 Electromagnetic . | . . . Robot Hit Streak 38 | . 7 38 Robot Miss Streak 4 | . 4 2 Penetration Max . | . . . Secondary Targets . | . . . Shots Hit Robots 102 | . 48 54 Core Hits 19 | . 16 3 Critical Kills . | . . . Critical Parts Destroyed . | . . . Critical Strikes . | . . . Melee Attacks . | . . . Impact . | . . . Slashing . | . . . Piercing . | . . . Sneak Attacks . | . . . Combat Hostiles . | . . . Follow-up Attacks . | . . . Damage Inflicted 1226 | . 1012 214 Guns 153 | . 153 . Cannons 706 | . 600 106 Explosions 364 | . 256 108 Melee . | . . . Ramming 3 | . 3 . Kinetic 74 | . 22 52 Thermal 785 | . 731 54 Explosive 364 | . 256 108 Electromagnetic . | . . . Impact . | . . . Slashing . | . . . Piercing . | . . . Highest Corruption . | . . . Average Corruption . | . . . Corruption Purged . | . . . Corruption Blocked . | . . . Overload Shots . | . . . Overflow Damage 10 | . 10 . Projectiles . | . . . Explosions 10 | . 10 . Melee . | . . . Knockbacks 1 | . . 1 Impact . | . . . Kinetic 1 | . . 1 Secondary . | . . . Self-Inflicted Damage . | . . . Shots . | . . . Rammed 2 | . 2 . Targets Rammed 2 | . 2 . Kicked . | . . . Crushed . | . . . Highest Temperature 240 | . 240 . Average Temperature 79 | . 79 . Received Heat Transfer 303 | . 93 210 Siege Activations . | . . . Robots Corrupted . | . . . Combat Hostiles . | . . . Parts Fried . | . . . Impact Corruptions . | . . . Robots Melted . | . . . Combat Hostiles . | . . . Parts Melted 1 | . 1 . Heat Transferred 1716 | . 1605 111 Parts Sabotaged . | . . . Parts Stolen . | . . . Parts Stripped . | . . . Power Chain Reactions . | . . . Alert | -11 -10 -10 ------- Run | Yrd Mat Sub Peak Influence 292 | . 292 . Initial . | . . . Average 112 | . 113 . Maximum Alert Level 1 | . 1 . Low Security (%) 85 | 100 85 . Level 1 14 | . 14 . Level 2 . | . . . Level 3 . | . . . Level 4 . | . . . Level 5 . | . . . High Security . | . . . Max Security . | . . . Squads Dispatched 4 | . 4 . Investigation 2 | . 2 . Extermination . | . . . Reinforcement 2 | . 2 . Assault . | . . . Garrison . | . . . Intercept . | . . . Searches Triggered . | . . . Construction Impeded . | . . . Haulers Reinforced . | . . . Active Scanning Responses . | . . . Cargo Convoy Interrupts . | . . . Stealth | -11 -10 -10 --------- Run | Yrd Mat Sub Distress Signals 1 | . 1 . Communications Jammed . | . . . Distress Signals . | . . . Times Spotted 27 | . 24 3 Peak Tracking Total 3 | . 3 2 Tactical Retreats . | . . . Traps | -11 -10 -10 ------- Run | Yrd Mat Sub Traps Triggered 1 | . 1 . Indirectly . | . . . Trap Hack Attempts . | . . . Triggered . | . . . Disarmed . | . . . Reprogrammed . | . . . Reused . | . . . Traps Extracted . | . . . Installed . | . . . Triggered . | . . . Machines | -11 -10 -10 ---------- Run | Yrd Mat Sub Machines Disabled 3 | . 3 . Max in Single Turn 1 | . 1 . Machines Repaired . | . . . Machines Dismantled . | . . . Machines Sabotaged . | . . . Overloaded Fab Kills . | . . . Hacking | -11 -10 -10 --------- Run | Yrd Mat Sub Machines Accessed 7 | . 7 . Terminals 5 | . 5 . Fabricators . | . . . Repair Stations . | . . . Recycling Units 2 | . 2 . Scanalyzers . | . . . Garrison Access . | . . . Total Hacks 21 | . 21 . Successful 9 | . 9 . Failed 11 | . 11 . Catastrophic 3 | . 3 . Database Lockouts 1 | . 1 . Manual 14 | . 14 . Terminals 17 | . 17 . Fabricators . | . . . Repair Stations . | . . . Recycling Units 4 | . 4 . Scanalyzers . | . . . Garrison Access . | . . . Terminal Hacks 8 | . 8 . Robot Analysis 3 | . 3 . Prototype ID Bank 1 | . 1 . Emergency Access Points 1 | . 1 . Locate Traps 1 | . 1 . Hauler Manifests 1 | . 1 . Registered Components 1 | . 1 . Fabricator Hacks . | . . . Repair Station Hacks . | . . . Recycling Unit Hacks . | . . . Scanalyzer . | . . . Garrison Access Hacks . | . . . Unauthorized Hacks 1 | . 1 . Terminals . | . . . Fabricators . | . . . Repair Stations . | . . . Recycling Units 1 | . 1 . Tunnel 1 | . 1 . Scanalyzers . | . . . Garrison Access . | . . . Data Cores Recovered . | . . . Used . | . . . Hacking Detections 7 | . 7 . Full Trace Events . | . . . Feedback Events . | . . . Feedback Blocked . | . . . Robot Schematics Acquired . | . . . Robots Built . | . . . Authchips . | . . . Time . | . . . Total Robot Build Rating . | . . . Part Schematics Acquired . | . . . Parts Built . | . . . Authchips . | . . . Time . | . . . Total Part Build Rating . | . . . Parts Repaired . | . . . Time . | . . . Parts Recycled . | . . . Recycled Matter . | . . . Retrieved Matter . | . . . Retrieved Components . | . . . Parts Scanalyzed . | . . . Part Schematics Acquired . | . . . Parts Damaged . | . . . Bothacking | -11 -10 -10 ------------ Run | Yrd Mat Sub Used RIF Installer . | . . . Robots Hacked . | . . . Non-combat . | . . . Combat . | . . . Robot Hacks Applied . | . . . Relay Couplers Released . | . . . Fabnet Peak Effective % . | . . . Robots Rewired . | . . . Allies Hacked . | . . . Hacks Repelled . | . . . Allies | -11 -10 -10 -------- Run | Yrd Mat Sub Total Allies . | . . . Largest Group . | . . . Highest-Rated Group . | . . . Highest-Rated Ally . | . . . Total Orders . | . . . Ally Attacks . | . . . Total Damage . | . . . Kills . | . . . Allies Corrupted . | . . . Allies Melted . | . . . Intel | -11 -10 -10 ------- Run | Yrd Mat Sub Robot Analysis Total 3 | . 3 . Derelict Logs Recovered . | . . . Drone Launches . | . . . Drone Recoveries . | . . . Exploration | -11 -10 -10 ------------- Run | Yrd Mat Sub Turns Passed 1755 | 18 1490 247 Spaces Moved 713 | 11 616 86 Core . | . . . Treads 636 | 7 616 13 Legs 4 | 4 . . Wheels 73 | . . 73 Hover . | . . . Flight . | . . . Fastest Speed 120 | 120 160 145 Average Speed 203 | 145 210 159 Slowest Speed 240 | 160 240 240 Overloaded Moves . | . . . Propulsion Burnouts . | . . . Robots Hopped . | . . . Cave-ins Triggered . | . . . Exploration Rate (%) 36 | 2 97 10 Regions Visited 2 Branch Regions 1 Pre-discovered Areas 1 | . 1 . Known Exits Taken . | . . . Unknown Exits Taken 2 | 1 1 . Scrap Searched 3 | . . 3 Spaces Dug . | . . . Terrain Destroyed 28 | . 20 8 Melee . | . . . Projectile . | . . . AOE 28 | . 20 8 Terrain Rammed . | . . . Walls Destroyed . | . . . Machines Disabled . | . . . Actions | -11 -10 -10 --------- Run | Yrd Mat Sub Total 879 | 12 730 137 Wait 36 | . 35 1 Move 711 | 10 615 86 Hop . | . . . Pick Up 23 | . 15 8 Fast Attach 8 | . 6 2 Attach 6 | . . 6 Detach 2 | . 2 . Swap 8 | 2 5 1 Drop 11 | . 9 2 Fire 72 | . 41 31 Melee . | . . . Ram . | . . . Kick . | . . . Crush 2 | . 2 . Escape Stasis . | . . . Rewire . | . . . Trap . | . . . Miscellaneous . | . . . Route ------- -11/Scrapyard -10/Materials (discovered 6 exits: [*Mat x3] / [*Min x2] / [*Sub]) -10/Subcaves History --------- Turn | Location | Event 1 | -11/Scrapyard | Discovered new exit (range 3) 19 | -11/Scrapyard | Entered Materials 293 | -10/Materials | Central database locked down 301 | -10/Materials | Discovered new exit (range 8) 302 | -10/Materials | Build established: Mutant 382 | -10/Materials | Discovered new exit (range 15) 632 | -10/Materials | Discovered new exit (range 16) 962 | -10/Materials | Discovered new exit (range 10) 1373 | -10/Materials | Discovered new exit (range 7) 1409 | -10/Materials | Discovered new exit (range 8) 1509 | -10/Materials | Entered Subcaves 1559 | -10/Subcaves | Core integrity fell below 50% 1607 | -10/Subcaves | Core integrity fell below 20% 1664 | -10/Subcaves | Lost 7 parts (1p4n2w) 1756 | -10/Subcaves | Destroyed by EL-RFC(R) with Subdweller Machine Gun Last Messages --------------- 01651_ Dropped Lgt. Cannon. 01651_ Acquired Sub. Beam Cannon. 01656_ Acquired 3 matter. 01660_ Acquired Lgt. Cannon. 01662_ Searching scrap... 01662_ Found Sub. Power Source. 01662_ Found Flamer. 01662_ Found 20 Matter. 01663_ Acquired 20 matter. 01665_ Acquired Flamer. 01666_ Subatomizers dissect the Sub. Power Source. 01668_ Searching scrap... 01668_ Found Sub. Laser. 01668_ Found 17 Matter. 01669_ Acquired 17 matter. 01672_ Acquired Scrap Shield Fragment. 01676_ Subatomizers dissect the Sub. Power Source. 01678_ Acquired Scrap Shield Fragment. Map ----- +----------------------------------------------------+ | ???????????????# "??????????????? | | ???????????????# ## ??????????????? | | ??????????????## ##? ##???????????????? | | ??????????????# ##??? #????????????????? | | ??????????????# #????# #????????????????? | | ??????????????# #????? ##????????????????? | | ??????????????# ##????? ##?????????????????? | | ??????????????# #?????? #??????????????????? | | ??????????????# #?????? ##?????????????????? | | ??????????????# #????? #?????????????????? | | ??????????????# #????? ??????????????????? | | ??????????????# ##??? ???????????????????? | | ??????????????# #??# #????#???????????????? | | ??????????????# ##?# #??? #???????????????? | | ??????????????# #?# ## #????????????????? | | ??????????????# ## #????????????????? | | ??????????????# #????????????????? | | ??????????????## #???????????????? | | ???????????????# ### #???????????????? | | ???????????????# ##????? ????????????????? | | ???????????????# #??????????????????????????? | | ???????????????# ##?????????????????????????? | | ???????????????# ###???????????????????????? | | ???????????????# ####????????????????????? | | ???????????????## ### #???????????????? | | ???????????????# ###@ #????????????????? | | ???????????????## ## #????????????????? | | ???????????????## ## ## #????????????????? | | ???????????????# ## #??#????????????????? | | ???????????????#"""## ##???????????????????? | | ???????????????#"""## " ????????????????????? | | ???????????????#"""# ##???????????????????? | | ???????????????""""# R #????????????????????? | | ???????????????""""" R ????????????????????? | | ??????????????? "" ????????????????????? | | ??????????????????? " ????????????????????? | | ??????????????????? " # ???????????????????? | | ??????????????????? " "##????????????????????? | | ??????????????????"""?" ??????????????????????? | | ??????????????????????"???????????????????????? | | ??????????????????????????????????????????????? | | ??????????????????????????????????????????????? | | ??????????????????????????????????????????????? | | ??????????????????????????????????????????????? | | ??????????????????????????????????????????????? | | ??????????????????????????????????????????????? | | ??????????????????????????????????????????????? | | ??????????????????????????????????????????????? | | ??????????????????????????????????????????????? | | ??????????????????????????????????????????????? | +----------------------------------------------------+ Best States ------------- Heat Dissipation 39 Energy Generation 15 Energy Capacity 265 Matter Stores 300 Matter Capacity 300 Sight Range 16 Terrain Scan Density 10 Evasion (%) 40 Recoil Reduction 2 Item Schematics ----------------- None Robot Schematics ------------------ None Fabricated ------------ Nothing Alien Tech Used ----------------- None Achievements -------------- None Challenges ------------ None Game ------ Seed CoordinationIonicTearclaws Manual? 0 Play Time 00:15:39 Cumulative 130.1 hours Start 2024.04.12 @ 13:40:55 End 2024.04.12 @ 13:55:08 Sessions 1 Manual Loads 0 Difficulty Rogue Special Mode None Game No. 61 Rogue 59 Adventurer 2 Explorer 0 Win Type - Total 3 Types 3/0/0/0/0/0/0/0/0 Lore% 55 Gallery% 68 Achievement% 54 Wizard Run 0 Options --------- Layout 2 ASCII 0 Keyboard 0 Movement Numpad Keybinds 0 Fullscreen 2 Font 32/SmallcapsGlow Map View 50x44 Zoom Use 0% Tactical HUD 1 Map Filters NONE Filters NONE Steam 1 RUN: 38d0572f-9dd7-4bfb-8ee8-b445de96bdd8